fUST/lending_fUST_20240524
["ID","MTS","AMOUNT","RATE_DAILY","PERIOD"]
[327830196,1716526244768,-500.0,0.00024657,2]
[327830197,1716526244777,-781.61,0.00024657,2]
[327830198,1716526244786,-503.62698146,0.00024657,2]
[327830199,1716526244796,-500.0,0.00024657,2]
[327830200,1716526244806,-500.0,0.00024657,2]
[327830201,1716526244816,-352.40097114,0.00024657,2]
[327830202,1716526244826,-151.0,0.00024657,2]
[327830203,1716526244837,-171.323699,0.00024657,2]
[327830204,1716526244848,-500.0,0.00024657,2]
[327830205,1716526244859,-500.0,0.00024657,2]
[327830206,1716526244870,-500.0,0.00024657,2]
[327830207,1716526244881,-1850.6,0.00024657,2]
[327830208,1716526244892,-665.93,0.00024657,2]
[327830209,1716526244902,-151.0,0.00024657,2]
[327830210,1716526244912,-976.35,0.00024657,2]
[327830211,1716526244923,-152.79884,0.00024657,2]
[327830212,1716526244933,-509.71,0.00024657,2]
[327830213,1716526244943,-500.0,0.00024657,2]
[327830214,1716526244953,-500.0,0.00024657,2]
[327830215,1716526244964,-151.0,0.00024657,2]
[327830216,1716526244974,-151.0,0.00024657,2]
[327830217,1716526244984,-155.69982,0.00024657,2]
[327830218,1716526244995,-500.0,0.00024657,2]
[327830219,1716526245008,-500.0,0.00024657,2]
[327830220,1716526245018,-500.0,0.00024657,2]
[327830221,1716526245028,-151.0,0.00024657,2]
[327830222,1716526245038,-175.562668,0.00024657,2]
[327830223,1716526245049,-2497.09,0.00024657,2]
[327830224,1716526245059,-1130.87,0.00024657,2]
[327830225,1716526245070,-502.21510999,0.00024657,2]
[327830226,1716526245081,-500.0,0.00024657,2]
[327830227,1716526245091,-500.0,0.00024657,2]
[327830228,1716526245102,-500.0,0.00024657,2]
[327830229,1716526245112,-1862.86,0.00024657,2]
[327830230,1716526245122,-1792.12,0.00024657,2]
[327830231,1716526245132,-151.0,0.00024657,2]
[327830232,1716526245143,-153.850586,0.00024657,2]
[327830233,1716526245155,-500.0,0.00024657,2]
[327830234,1716526245167,-706.85,0.00024657,2]
[327830235,1716526245178,-151.0,0.00024657,2]
[327830236,1716526245189,-152.290358,0.00024657,2]
[327830237,1716526245200,-560.16,0.00024657,2]
[327830238,1716526245210,-500.0,0.00024657,2]
[327830239,1716526245221,-500.0,0.00024657,2]
[327830240,1716526245232,-500.0,0.00024657,2]
[327830241,1716526245244,-500.0,0.00024657,2]
[327830242,1716526245257,-500.0,0.00024657,2]
[327830243,1716526245267,-2234.88,0.00024657,2]
[327830244,1716526245277,-500.0,0.00024657,2]
[327830245,1716526245288,-2089.8,0.00024657,2]
[327830246,1716526245298,-500.0,0.00024657,2]
[327830247,1716526245308,-151.0,0.00024657,2]
[327830248,1716526245318,-151.0,0.00024657,2]
[327830249,1716526245327,-151.0,0.00024657,2]
[327830250,1716526245337,-210.045575,0.00024657,2]
[327830251,1716526245346,-503.23862507,0.00024657,2]
[327830252,1716526245356,-151.0,0.00024657,2]
[327830253,1716526245366,-152.102547,0.00024657,2]
[327830254,1716526245376,-500.0,0.00024657,2]
[327830255,1716526245386,-500.0,0.00024657,2]
[327830256,1716526245396,-500.0,0.00024657,2]
[327830257,1716526245406,-3107.6,0.00024657,2]
[327830258,1716526245415,-1803.63,0.00024657,2]
[327830259,1716526245425,-1172.92,0.00024657,2]
[327830260,1716526245435,-321.99348109,0.00024657,2]
[327830261,1716526245444,-151.0,0.00024657,2]
[327830262,1716526245454,-500.0,0.00024657,2]
[327830263,1716526245464,-151.0,0.00024657,2]
[327830264,1716526245473,-500.0,0.00024657,2]
[327830265,1716526245483,-151.0,0.00024657,2]
[327830266,1716526245492,-151.0,0.00024657,2]
[327830267,1716526245504,-151.0,0.00024657,2]
[327830268,1716526245514,-151.0,0.00024657,2]
[327830269,1716526245524,-151.0,0.00024657,2]
[327830270,1716526245534,-155.415281,0.00024657,2]
[327830271,1716526245543,-1468.01,0.00024657,2]
[327830272,1716526245553,-3746.9,0.00024657,2]
[327830273,1716526245563,-706.82528,0.00024657,2]
[327830274,1716526245572,-706.82528,0.00024657,2]
[327830276,1716526245582,-706.82528,0.00024657,2]
[327830277,1716526245705,-706.82528,0.00024657,2]
[327830278,1716526245715,-706.82528,0.00024657,2]
[327830279,1716526245725,-706.82528,0.00024657,2]
[327830280,1716526245735,-706.82528,0.00024657,2]
[327830281,1716526245744,-706.82528,0.00024657,2]
[327830282,1716526245755,-706.82528,0.00024657,2]
[327830283,1716526245764,-706.82528,0.00024657,2]
[327830284,1716526245774,-706.82528,0.00024657,2]
[327830285,1716526245783,-706.82528,0.00024657,2]
[327830286,1716526245792,-706.82528,0.00024657,2]
[327830287,1716526245802,-706.82528,0.00024657,2]
[327830288,1716526245812,-706.82528,0.00024657,2]
[327830289,1716526245822,-706.82528,0.00024657,2]
[327830290,1716526245832,-706.82528,0.00024657,2]
[327830291,1716526245842,-706.82528,0.00024657,2]
[327830292,1716526245851,-501.41107373,0.00024657,2]
[327830293,1716526245861,-706.82528,0.00024657,2]
[327830295,1716526245870,-706.82527461,0.00024657,2]
[327830297,1716526245880,-896.38,0.00024657,2]
[327830299,1716526245889,-1304.42,0.00024657,2]
[327830300,1716526245899,-805.35,0.00024657,2]
[327830301,1716526245908,-500.0,0.00024657,2]
[327830302,1716526245919,-500.0,0.00024657,2]
[327830303,1716526245929,-1376.96,0.00024657,2]
[327830305,1716526245939,-501.81017198,0.00024657,2]
[327830307,1716526245949,-504.65651107,0.00024657,2]
[327830309,1716526245959,-508.35493883,0.00024657,2]
[327830310,1716526245968,-1343.64,0.00024657,2]
[327830311,1716526245978,-500.0,0.00024657,2]
[327830312,1716526245988,-151.0,0.00024657,2]
[327830314,1716526245998,-1375.05,0.00024657,2]
[327830315,1716526246007,-158.896297,0.00024657,2]
[327830316,1716526246016,-500.0,0.00024657,2]
[327830317,1716526246025,-500.0,0.00024657,2]
[327830318,1716526246035,-828.64,0.00024657,2]
[327830319,1716526246044,-533.473128,0.00024657,2]
[327830320,1716526246054,-500.0,0.00024657,2]
[327830321,1716526246064,-533.473128,0.00024657,2]
[327830322,1716526246073,-533.473128,0.00024657,2]
[327830324,1716526246083,-151.0,0.00024657,2]
[327830325,1716526246092,-578.61,0.00024657,2]
[327830326,1716526246102,-533.473128,0.00024657,2]
[327830327,1716526246111,-151.0,0.00024657,2]
[327830328,1716526246122,-503.11560485,0.00024657,2]
[327830329,1716526246131,-533.473128,0.00024657,2]
[327830330,1716526246141,-151.0,0.00024657,2]
[327830332,1716526246152,-533.473128,0.00024657,2]
[327830333,1716526246165,-151.0,0.00024657,2]
[327830334,1716526246175,-500.0,0.00024657,2]
[327830335,1716526246184,-533.473128,0.00024657,2]
[327830336,1716526246195,-533.473128,0.00024657,2]
[327830337,1716526246206,-151.0,0.00024657,2]
[327830339,1716526246215,-533.473128,0.00024657,2]
[327830340,1716526246225,-19.59205323,0.00024657,2]
[327830341,1716526246245,-131.40794677,0.00024657,2]
[327830342,1716526246256,-533.473128,0.00024657,2]
[327830343,1716526246265,-151.0,0.00024657,2]
[327830344,1716526246275,-533.473128,0.00024657,2]
[327830345,1716526246285,-628.41,0.00024657,2]
[327830346,1716526246296,-151.0,0.00024657,2]
[327830347,1716526246305,-533.473128,0.00024657,2]
[327830348,1716526246316,-533.473128,0.00024657,2]
[327830349,1716526246326,-151.0,0.00024657,2]
[327830350,1716526246337,-2561.3,0.00024657,2]
[327830351,1716526246348,-151.0,0.00024657,2]
[327830352,1716526246358,-533.473128,0.00024657,2]
[327830353,1716526246367,-151.461149,0.00024657,2]
[327830354,1716526246377,-1791.93,0.00024657,2]
[327830355,1716526246387,-533.473128,0.00024657,2]
[327830356,1716526246396,-533.473128,0.00024657,2]
[327830357,1716526246405,-500.0,0.00024657,2]
[327830358,1716526246415,-533.473128,0.00024657,2]
[327830359,1716526246424,-533.473128,0.00024657,2]
[327830360,1716526246434,-500.0,0.00024657,2]
[327830361,1716526246443,-533.473128,0.00024657,2]
[327830362,1716526246453,-533.473137,0.00024657,2]
[327830363,1716526246462,-500.0,0.00024657,2]
[327830364,1716526246471,-500.0,0.00024657,2]
[327830365,1716526246481,-500.0,0.00024657,2]
[327830366,1716526246491,-581.43,0.00024657,2]
[327830367,1716526246501,-581.43,0.00024657,3]
[327830368,1716526246511,-581.43,0.00024657,4]
[327830369,1716526246522,-581.43,0.00024657,5]
[327830370,1716526246532,-581.43,0.00024657,6]
[327830371,1716526246542,-581.43,0.00024657,7]
[327830372,1716526246552,-581.43,0.00024657,8]
[327830373,1716526246562,-581.43,0.00024657,9]
[327830374,1716526246572,-581.43,0.00024657,10]
[327830375,1716526246582,-500.0,0.00024657,2]
[327830376,1716526246592,-500.0,0.00024657,2]
[327830377,1716526246603,-500.0,0.00024657,2]
[327830378,1716526246612,-500.0,0.00024657,2]
[327830379,1716526246623,-500.0,0.00024657,2]
[327830380,1716526246633,-501.97141397,0.00024657,2]
[327830381,1716526246643,-992.427765,0.00024657,2]
[327830382,1716526246653,-992.427765,0.00024657,2]
[327830383,1716526246663,-992.427765,0.00024657,2]
[327830384,1716526246673,-992.427765,0.00024657,2]
[327830385,1716526246683,-992.427765,0.00024657,2]
[327830386,1716526246693,-992.427765,0.00024657,2]
[327830387,1716526246703,-992.427765,0.00024657,2]
[327830388,1716526246713,-992.427765,0.00024657,2]
[327830389,1716526246724,-1519.67,0.00024657,2]
[327830390,1716526246734,-992.427765,0.00024657,2]
[327830391,1716526246744,-992.427765,0.00024657,2]
[327830392,1716526246755,-503.63492033,0.00024657,2]
[327830393,1716526246766,-992.427765,0.00024657,2]
[327830394,1716526246776,-992.427765,0.00024657,2]
[327830395,1716526246785,-992.427765,0.00024657,2]
[327830396,1716526246795,-992.427765,0.00024657,2]
[327830397,1716526246806,-992.427765,0.00024657,2]
[327830398,1716526246816,-500.0,0.00024657,2]
[327830399,1716526246826,-992.427771,0.00024657,2]
[327830400,1716526246836,-1080.21,0.00024657,2]
[327830401,1716526246846,-501.76484962,0.00024657,2]
[327830402,1716526246856,-3005.27290085,0.00024657,2]
[327830403,1716526246866,-5592.71,0.00024657,2]
[327830404,1716526246876,-500.0,0.00024657,2]
[327830405,1716526246886,-500.0,0.00024657,3]
[327830406,1716526246896,-500.0,0.00024657,2]
[327830407,1716526246905,-500.0,0.00024657,4]
[327830408,1716526246915,-500.0,0.00024657,5]
[327830409,1716526246924,-500.0,0.00024657,6]
[327830410,1716526246935,-500.0,0.00024657,7]
[327830411,1716526246945,-502.32256459,0.00024657,2]
[327830412,1716526246955,-637.30503085,0.00024657,8]
[327830413,1716526246965,-713.58,0.00024657,2]
[327830414,1716526246975,-501.85622361,0.00024657,2]
[327830415,1716526246985,-500.0,0.00024657,2]
[327830416,1716526246996,-300.0,0.00024657,2]
[327830417,1716526247007,-500.0,0.00024657,2]
[327830418,1716526247018,-8081.61,0.00024657,2]
[327830419,1716526247028,-500.92468588,0.00024657,2]
[327830420,1716526247039,-503.18804913,0.00024657,2]
[327830421,1716526247049,-502.6394185,0.00024657,2]
[327830422,1716526247059,-502.42872022,0.00024657,2]
[327830423,1716526247070,-767.9,0.00024657,2]
[327830424,1716526247080,-504.00304813,0.00024657,2]
[327830425,1716526247090,-500.0,0.00024657,2]
[327830426,1716526247101,-500.0,0.00024657,2]
[327830427,1716526247111,-508.59753734,0.00024657,2]
[327830428,1716526247121,-706.41,0.00024657,2]
[327830429,1716526247131,-2856.15,0.00024657,2]
[327830430,1716526247142,-577.56,0.00024657,2]
[327830431,1716526247152,-4865.95,0.00024657,2]
[327830432,1716526247166,-503.37661246,0.00024657,2]
[327830433,1716526247176,-1055.34,0.00024657,2]
[327830434,1716526247186,-500.0,0.00024657,2]
[327830435,1716526247195,-500.0,0.00024657,2]
[327830436,1716526247207,-501.0920356,0.00024657,2]
[327830437,1716526247216,-503.6417735,0.00024657,2]
[327830438,1716526247227,-500.0,0.00024657,2]
[327830439,1716526247238,-502.25429433,0.00024657,2]
[327830440,1716526247248,-502.11323694,0.00024657,2]
[327830441,1716526247260,-500.0,0.00024657,2]
[327830442,1716526247270,-505.43875488,0.00024657,2]
[327830443,1716526247280,-630.79460569,0.00024657,2]
[327830444,1716526247290,-500.0,0.00024657,2]
[327830445,1716526247300,-500.0,0.00024657,2]
[327830446,1716526247310,-500.0,0.00024657,2]
[327830447,1716526247319,-156.000653,0.00024657,2]
[327830448,1716526247329,-504.43456438,0.00024657,2]
[327830449,1716526247339,-500.0,0.00024657,2]
[327830450,1716526247348,-500.0,0.00024657,2]
[327830451,1716526247358,-6320.69,0.00024657,2]
[327830452,1716526247368,-500.0,0.00024657,2]
[327830453,1716526247378,-151.0,0.00024657,2]
[327830454,1716526247388,-502.34377715,0.00024657,2]
[327830455,1716526247398,-171.849339,0.00024657,2]
[327830456,1716526247408,-729.29,0.00024657,2]
[327830457,1716526247418,-729.29,0.00024657,3]
[327830458,1716526247428,-729.29,0.00024657,4]
[327830459,1716526247438,-729.29,0.00024657,5]
[327830460,1716526247448,-500.0,0.00024657,2]
[327830461,1716526247458,-729.29,0.00024657,6]
[327830462,1716526247468,-729.29,0.00024657,7]
[327830463,1716526247478,-729.29,0.00024657,8]
[327830464,1716526247487,-729.29,0.00024657,9]
[327830465,1716526247497,-729.29,0.00024657,10]
[327830466,1716526247508,-500.0,0.00024657,2]
[327830467,1716526247518,-502.4548231,0.00024657,2]
[327830468,1716526247528,-504.5003027,0.00024657,2]
[327830469,1716526247538,-507.19216216,0.00024657,2]
[327830470,1716526247548,-202.48410108,0.00024657,2]
[327830471,1716526247559,-500.0,0.00024657,2]
[327830472,1716526247569,-1907.722848,0.00024657,2]
[327830473,1716526247579,-1907.722848,0.00024657,2]
[327830474,1716526247588,-2624.4,0.00024657,2]
[327830475,1716526247598,-1907.722848,0.00024657,2]
[327830476,1716526247608,-1907.722848,0.00024657,2]
[327830477,1716526247618,-502.87109128,0.00024657,2]
[327830478,1716526247628,-1907.722848,0.00024657,2]
[327830479,1716526247638,-1907.722848,0.00024657,2]
[327830480,1716526247647,-1907.722848,0.00024657,2]
[327830481,1716526247657,-500.0,0.00024657,2]
[327830482,1716526247667,-1907.722848,0.00024657,2]
[327830483,1716526247677,-1907.722848,0.00024657,2]
[327830484,1716526247687,-1907.722848,0.00024657,2]
[327830485,1716526247696,-500.0,0.00024657,2]
[327830486,1716526247706,-1907.722848,0.00024657,2]
[327830487,1716526247716,-1907.722848,0.00024657,2]
[327830488,1716526247725,-1907.722848,0.00024657,2]
[327830489,1716526247735,-1907.722845,0.00024657,2]
[327830490,1716526247744,-167.32976926,0.00024657,2]
[327830491,1716526247756,-1449.85,0.00024657,2]
[327830492,1716526247766,-500.78200161,0.00024657,2]
[327830493,1716526247776,-500.0,0.00024657,2]
[327830494,1716526247787,-505.08829807,0.00024657,2]
[327830495,1716526247797,-500.0,0.00024657,2]
[327830496,1716526247806,-151.0,0.00024657,2]
[327830497,1716526247816,-151.0,0.00024657,2]
[327830498,1716526247826,-299.071645,0.00024657,2]
[327830499,1716526247836,-502.40939967,0.00024657,2]
[327830500,1716526247846,-500.0,0.00024657,2]
[327830501,1716526247856,-501.24618383,0.00024657,2]
[327830502,1716526247866,-151.38396266,0.00024657,2]
[327830503,1716526247876,-554.9,0.00024657,2]
[327830504,1716526247886,-2129.28,0.00024657,2]
[327830505,1716526247895,-500.0,0.00024657,2]
[327830506,1716526247904,-501.29792354,0.00024657,2]
[327830507,1716526247914,-2938.597128,0.00024657,2]
[327830508,1716526247923,-2938.597128,0.00024657,2]
[327830509,1716526247932,-500.0,0.00024657,2]
[327830510,1716526247942,-2938.597128,0.00024657,2]
[327830511,1716526247951,-547.72,0.00024657,2]
[327830512,1716526247960,-2938.597128,0.00024657,2]
[327830513,1716526247969,-2938.597128,0.00024657,2]
[327830514,1716526247979,-2938.597128,0.00024657,2]
[327830515,1716526247988,-2938.597128,0.00024657,2]
[327830516,1716526247997,-2938.597128,0.00024657,2]
[327830517,1716526248009,-2938.597128,0.00024657,2]
[327830518,1716526248019,-185.894525,0.00024657,2]
[327830519,1716526248028,-2938.597133,0.00024657,2]
[327830520,1716526248038,-185.894525,0.00024657,2]
[327830521,1716526248047,-185.894525,0.00024657,2]
[327830522,1716526248056,-2697.94,0.00024657,2]
[327830523,1716526248065,-185.894525,0.00024657,2]
[327830524,1716526248074,-185.894525,0.00024657,2]
[327830525,1716526248083,-556.58,0.00024657,2]
[327830526,1716526248091,-502.80225346,0.00024657,2]
[327830527,1716526248100,-818.55,0.00024657,2]
[327830528,1716526248109,-185.894525,0.00024657,2]
[327830529,1716526248118,-185.894525,0.00024657,2]
[327830530,1716526248127,-185.894525,0.00024657,2]
[327830531,1716526248136,-185.894525,0.00024657,2]
[327830532,1716526248145,-185.894534,0.00024657,2]
[327830533,1716526248269,-503.17215185,0.00024657,2]
[327830534,1716526248279,-500.0,0.00024657,2]
[327830535,1716526248288,-502.5409532,0.00024657,2]
[327830536,1716526248298,-506.46803111,0.00024657,2]
[327830537,1716526248307,-151.0,0.00024657,2]
[327830538,1716526248316,-151.0,0.00024657,2]
[327830539,1716526248326,-626.13,0.00024657,2]
[327830540,1716526248335,-236.025422,0.00024657,2]
[327830541,1716526248344,-626.13,0.00024657,3]
[327830542,1716526248353,-626.13,0.00024657,4]
[327830543,1716526248362,-626.13,0.00024657,5]
[327830544,1716526248371,-626.13,0.00024657,6]
[327830545,1716526248381,-626.13,0.00024657,7]
[327830546,1716526248390,-626.13,0.00024657,8]
[327830547,1716526248400,-626.13,0.00024657,9]
[327830548,1716526248409,-626.13,0.00024657,10]
[327830549,1716526248418,-151.0,0.00024657,2]
[327830550,1716526248427,-154.442059,0.00024657,2]
[327830551,1716526248436,-943.46068702,0.00024657,2]
[327830552,1716526252534,648.0400006,0.00020913,2]
[327830553,1716526759756,2000.0,0.0002,2]
[327830554,1716526786348,2624.981091,0.0002,2]
[327830555,1716527092325,1500.0,0.0002,2]
[327830557,1716527234149,-231.60373928,0.00020913,2]
[327830558,1716527234170,-166.666666,0.00022546,2]
[327830559,1716527234190,-167.22092789,0.00022557,2]
[327830560,1716527234210,-181.6314963,0.00022767,2]
[327830561,1716527234232,-9177.7740139,0.0002284,2]
[327830562,1716527234252,-8723.37348767,0.00022936,2]
[327830563,1716527244141,-396.66286127,0.00022936,2]
[327830569,1716527418945,4455.29327188,0.00020913,2]
[327830570,1716527419845,1097.73752106,0.00020913,2]
[327830595,1716527433431,-166.666666,0.00023161,2]
[327830597,1716527433440,-888.6197677,0.00023195,2]
[327830599,1716527433449,-153.0,0.00023741,2]
[327830601,1716527433459,-153.0,0.00023741,2]
[327830603,1716527433468,-153.0,0.00023741,2]
[327830605,1716527433477,-166.666666,0.00023775,2]
[327830607,1716527433486,-153.0,0.000238,2]
[327830609,1716527433495,-153.0,0.000238,2]
[327830611,1716527433504,-153.0,0.000238,2]
[327830613,1716527433514,-153.0,0.000238,2]
[327830614,1716527433523,-153.0,0.00023836,2]
[327830616,1716527433532,-153.0,0.00023878,2]
[327830618,1716527433541,-582.2722898,0.00023878,2]
[327830620,1716527433550,-204.6274004,0.00023878,2]
[327830622,1716527433559,-204.6274004,0.00023878,2]
[327830624,1716527433568,-153.0,0.00023878,2]
[327830626,1716527433578,-153.0,0.00023878,2]
[327830628,1716527433589,-204.6274004,0.00023878,2]
[327830630,1716527433599,-204.6274004,0.00023878,2]
[327830632,1716527433608,-153.0,0.00023878,2]
[327830634,1716527433617,-204.6274004,0.00023878,2]
[327830636,1716527433627,-153.0,0.00023878,2]
[327830638,1716527433636,-153.0,0.00023878,2]
[327830640,1716527433645,-153.0,0.000239,2]
[327830641,1716527433655,-153.0,0.000239,2]
[327830643,1716527433663,-153.0,0.0002411,2]
[327830645,1716527433674,-204.6274004,0.0002411,2]
[327830647,1716527433683,-204.6274004,0.0002411,2]
[327830649,1716527433693,-204.6274004,0.0002411,2]
[327830651,1716527433702,-151.0,0.00024308,5]
[327830652,1716527433712,-163.906954,0.00024384,2]
[327830653,1716527433721,-272.855694,0.00024384,2]
[327830654,1716527433732,-369.5301446,0.00024384,2]
[327830655,1716527433742,-166.666666,0.0002439,2]
[327830656,1716527433751,-299.95067638,0.0002441,2]
[327830657,1716527433762,-151.0,0.00024464,5]
[327830658,1716527433772,-417.48839794,0.00024495,2]
[327830659,1716527433781,-2000.0,0.00024557,2]
[327830660,1716527433790,-1783.65798566,0.00024557,3]
[327830661,1716527433799,-151.0,0.00024621,5]
[327830662,1716527433809,-3886.25812167,0.00024633,2]
[327830663,1716527433819,-208.14595637,0.00024656,2]
[327830664,1716527433829,-500.0,0.00024656,2]
[327830665,1716527433838,-500.0,0.00024656,2]
[327830666,1716527433848,-500.0,0.00024656,2]
[327830667,1716527433858,-500.0,0.00024656,2]
[327830668,1716527433867,-230.87702302,0.00024656,2]
[327830669,1716527433877,-500.0,0.00024656,2]
[327830670,1716527433886,-200.0,0.00024656,2]
[327830671,1716527433895,-500.0,0.00024656,2]
[327830672,1716527433905,-500.0,0.00024656,2]
[327830673,1716527433914,-500.0,0.00024656,2]
[327830674,1716527433924,-500.0,0.00024656,2]
[327830675,1716527433933,-500.0,0.00024656,2]
[327830676,1716527433942,-500.0,0.00024656,2]
[327830677,1716527433951,-500.0,0.00024656,2]
[327830678,1716527433961,-500.0,0.00024656,2]
[327830679,1716527433970,-500.0,0.00024656,2]
[327830680,1716527433979,-500.0,0.00024656,2]
[327830681,1716527433989,-500.0,0.00024656,2]
[327830682,1716527433998,-500.0,0.00024656,2]
[327830683,1716527434007,-500.0,0.00024656,2]
[327830684,1716527434018,-500.0,0.00024656,2]
[327830685,1716527434027,-500.0,0.00024656,2]
[327830686,1716527434036,-212.56727038,0.00024656,2]
[327830687,1716527434046,-500.0,0.00024656,2]
[327830688,1716527434055,-498.20167838,0.00024656,2]
[327830689,1716527434064,-500.0,0.00024656,2]
[327830690,1716527434205,-500.0,0.00024656,2]
[327830691,1716527434216,-500.0,0.00024656,2]
[327830692,1716527434225,-173.0971849,0.00024656,2]
[327830693,1716527434234,-500.0,0.00024656,2]
[327830694,1716527434243,-500.0,0.00024656,2]
[327830695,1716527434253,-500.0,0.00024656,2]
[327830696,1716527434262,-500.0,0.00024656,2]
[327830697,1716527434272,-500.0,0.00024656,2]
[327830698,1716527434281,-500.0,0.00024656,2]
[327830699,1716527434290,-500.0,0.00024656,2]
[327830700,1716527434301,-500.0,0.00024656,2]
[327830701,1716527434311,-500.0,0.00024656,2]
[327830702,1716527434323,-500.0,0.00024656,2]
[327830703,1716527434333,-500.0,0.00024656,2]
[327830704,1716527434344,-500.0,0.00024656,2]
[327830705,1716527434354,-500.0,0.00024656,2]
[327830706,1716527434363,-1414.82656747,0.00024656,3]
[327830707,1716527434372,-1186.46,0.00024656,4]
[327830708,1716527434381,-1186.46,0.00024656,4]
[327830709,1716527434391,-115.87821547,0.00024656,4]
[327830724,1716527438452,-250.27805825,0.00024557,2]
[327830725,1716527438461,-818.7904802,0.00024656,4]
[327830750,1716527443147,-500.0,0.00024656,2]
[327830751,1716527443157,-500.0,0.00024656,2]
[327830752,1716527443166,-264.94454977,0.00024656,2]
[327830754,1716527443175,-500.0,0.00024656,2]
[327830755,1716527443185,-251.79130433,0.00024656,4]
[327830756,1716527443194,-1186.46,0.00024656,4]
[327830757,1716527443203,-1186.46,0.00024656,4]
[327830758,1716527443212,-1186.46,0.00024656,4]
[327830759,1716527443221,-1186.46,0.00024656,4]
[327830760,1716527443230,-150.616,0.00024657,2]
[327830761,1716527443239,-150.203,0.00024657,2]
[327830762,1716527443248,-1398.6344419,0.00024657,11]
[327830774,1716527444244,-5413.0460617,0.00024657,11]
[327830775,1716527444254,-1590.61249694,0.00024657,11]
[327830776,1716527444264,-496.0,0.00024657,2]
[327830777,1716527444275,-150.0,0.00024657,2]
[327830778,1716527444284,-500.0,0.00024657,2]
[327830779,1716527444293,-509.02859687,0.00024657,2]
[327830780,1716527444303,-502.70112601,0.00024657,2]
[327830781,1716527444313,-502.43855581,0.00024657,2]
[327830782,1716527444323,-153.127189,0.00024657,2]
[327830783,1716527444333,-502.16855781,0.00024657,2]
[327830784,1716527444342,-504.95733966,0.00024657,2]
[327830785,1716527444352,-501.77511785,0.00024657,2]
[327830786,1716527444362,-507.28290332,0.00024657,2]
[327830787,1716527444372,-500.0,0.00024657,2]
[327830788,1716527444382,-151.243732,0.00024657,2]
[327830789,1716527444392,-500.0,0.00024657,2]
[327830790,1716527444402,-503.83257566,0.00024657,2]
[327830791,1716527444412,-502.38713778,0.00024657,2]
[327830792,1716527444422,-158.84879189,0.00024657,2]
[327830793,1716527444431,-501.9214089,0.00024657,2]
[327830794,1716527444441,-500.0,0.00024657,2]
[327830795,1716527444451,-503.09699897,0.00024657,2]
[327830796,1716527444462,-500.0,0.00024657,2]
[327830797,1716527444471,-500.0,0.00024657,2]
[327830798,1716527444481,-500.0,0.00024657,2]
[327830799,1716527444491,-500.0,0.00024657,2]
[327830800,1716527444501,-504.15303573,0.00024657,2]
[327830801,1716527444511,-503.03197053,0.00024657,2]
[327830802,1716527444522,-500.0,0.00024657,2]
[327830803,1716527444532,-500.0,0.00024657,2]
[327830804,1716527444542,-500.0,0.00024657,2]
[327830805,1716527444551,-500.0,0.00024657,2]
[327830806,1716527444560,-504.51306152,0.00024657,2]
[327830807,1716527444570,-500.0,0.00024657,2]
[327830808,1716527444580,-500.0,0.00024657,2]
[327830809,1716527444593,-500.0,0.00024657,2]
[327830810,1716527444603,-500.0,0.00024657,2]
[327830811,1716527444613,-502.43539065,0.00024657,2]
[327830812,1716527444623,-504.30269471,0.00024657,2]
[327830813,1716527444633,-501.79692677,0.00024657,2]